fUSD/lending_fUSD_20260601
["ID","MTS","AMOUNT","RATE_DAILY","PERIOD"]
[423631259,1780265762000,-8500.01,8.199e-05,2]
[423631257,1780265762000,-300.0,8.198e-05,2]
[423631258,1780265762000,-1200.0,8.198e-05,2]
[423631256,1780265762000,9231.0,0.0003013,120]
[423631255,1780265762000,12167.0,0.0003013,120]
[423631262,1780265763000,-10000.01,8.199e-05,2]
[423631263,1780265765000,-10000.01,8.199e-05,2]
[423631265,1780265766000,184.0,0.0003013,120]
[423631264,1780265766000,391.0,0.0003013,120]
[423631266,1780265887000,-150.0,7.714e-05,2]
[423631267,1780265887000,-150.0,7.953e-05,2]
[423631269,1780265887000,-150.0,8.197e-05,2]
[423631270,1780265887000,-2784.77648536,8.198e-05,2]
[423631271,1780265887000,-685.49810133,8.198e-05,2]
[423631268,1780265887000,-250.0,8.075e-05,2]
[423631273,1780265887000,-685.49810133,8.198e-05,2]
[423631275,1780265887000,-685.49810133,8.198e-05,2]
[423631274,1780265887000,-685.49810133,8.198e-05,2]
[423631278,1780265887000,-685.49810133,8.198e-05,2]
[423631277,1780265887000,-685.49810133,8.198e-05,2]
[423631276,1780265887000,-685.49810133,8.198e-05,2]
[423631272,1780265887000,-685.49810133,8.198e-05,2]
[423631289,1780265888000,-685.49810133,8.198e-05,2]
[423631286,1780265888000,-685.49810133,8.198e-05,2]
[423631284,1780265888000,-685.49810133,8.198e-05,2]
[423631285,1780265888000,-685.49810133,8.198e-05,2]
[423631281,1780265888000,-685.49810133,8.198e-05,2]
[423631282,1780265888000,-685.49810133,8.198e-05,2]
[423631280,1780265888000,-685.49810133,8.198e-05,2]
[423631279,1780265888000,-685.49810133,8.198e-05,2]
[423631288,1780265888000,-685.49810133,8.198e-05,2]
[423631283,1780265888000,-685.49810133,8.198e-05,2]
[423631291,1780265888000,-685.49810133,8.198e-05,2]
[423631287,1780265888000,-685.49810133,8.198e-05,2]
[423631292,1780265888000,-685.49810133,8.198e-05,2]
[423631293,1780265888000,-685.49810133,8.198e-05,2]
[423631290,1780265888000,-685.49810133,8.198e-05,2]
[423631294,1780265888000,-685.49810133,8.198e-05,2]
[423631295,1780265888000,-685.49810133,8.198e-05,2]
[423631296,1780265888000,-685.49810133,8.198e-05,2]
[423631298,1780265888000,-685.49810133,8.198e-05,2]
[423631297,1780265888000,-685.49810133,8.198e-05,2]
[423631299,1780265888000,-685.49810133,8.198e-05,2]
[423631300,1780265888000,-685.49810133,8.198e-05,2]
[423631301,1780265888000,-685.49810133,8.198e-05,2]
[423631302,1780265888000,-264.78237341,8.198e-05,2]
[423631303,1780265889000,-420.71572792,8.198e-05,2]
[423631305,1780265889000,-685.49810133,8.198e-05,2]
[423631307,1780265889000,-685.49810133,8.198e-05,2]
[423631306,1780265889000,-685.49810133,8.198e-05,2]
[423631304,1780265889000,-685.49810133,8.198e-05,2]
[423631323,1780265890000,-500.0,8.198e-05,2]
[423631322,1780265890000,-685.49810133,8.198e-05,2]
[423631319,1780265890000,-685.49810133,8.198e-05,2]
[423631317,1780265890000,-685.49810133,8.198e-05,2]
[423631320,1780265890000,-685.49810133,8.198e-05,2]
[423631318,1780265890000,-478.01688316,8.198e-05,2]
[423631316,1780265890000,-500.0,8.198e-05,2]
[423631308,1780265890000,-685.49810133,8.198e-05,2]
[423631313,1780265890000,-685.49810133,8.198e-05,2]
[423631314,1780265890000,-685.49810133,8.198e-05,2]
[423631312,1780265890000,-685.49810133,8.198e-05,2]
[423631311,1780265890000,-685.49810133,8.198e-05,2]
[423631310,1780265890000,-685.49810133,8.198e-05,2]
[423631309,1780265890000,-685.49810133,8.198e-05,2]
[423631324,1780265890000,-500.0,8.198e-05,2]
[423631315,1780265890000,-522.47907946,8.198e-05,2]
[423631321,1780265890000,-500.0,8.198e-05,2]
[423631334,1780265890000,-689.89312031,8.198e-05,2]
[423631325,1780265890000,-500.0,8.198e-05,2]
[423631326,1780265890000,-168.5965949,8.198e-05,2]
[423631343,1780265890000,-410.56973035,8.198e-05,2]
[423631341,1780265890000,-689.89312031,8.198e-05,2]
[423631342,1780265890000,-279.32338996,8.198e-05,2]
[423631340,1780265890000,-689.89312031,8.198e-05,2]
[423631338,1780265890000,-689.89312031,8.198e-05,2]
[423631339,1780265890000,-689.89312031,8.198e-05,2]
[423631336,1780265890000,-689.89312031,8.198e-05,2]
[423631337,1780265890000,-689.89312031,8.198e-05,2]
[423631333,1780265890000,-689.89312031,8.198e-05,2]
[423631335,1780265890000,-689.89312031,8.198e-05,2]
[423631332,1780265890000,-689.89312031,8.198e-05,2]
[423631331,1780265890000,-689.89312031,8.198e-05,2]
[423631330,1780265890000,-689.89312031,8.198e-05,2]
[423631329,1780265890000,-689.89312031,8.198e-05,2]
[423631328,1780265890000,-689.89312031,8.198e-05,2]
[423631327,1780265890000,-689.89312031,8.198e-05,2]
[423631356,1780265891000,-689.89312031,8.198e-05,2]
[423631353,1780265891000,-689.89312031,8.198e-05,2]
[423631351,1780265891000,-689.89312031,8.198e-05,2]
[423631352,1780265891000,-689.89312031,8.198e-05,2]
[423631349,1780265891000,-689.89312031,8.198e-05,2]
[423631348,1780265891000,-689.89312031,8.198e-05,2]
[423631355,1780265891000,-689.89312031,8.198e-05,2]
[423631346,1780265891000,-689.89312031,8.198e-05,2]
[423631347,1780265891000,-689.89312031,8.198e-05,2]
[423631344,1780265891000,-689.89312031,8.198e-05,2]
[423631350,1780265891000,-689.89312031,8.198e-05,2]
[423631354,1780265891000,-689.89312031,8.198e-05,2]
[423631360,1780265891000,-689.89312031,8.198e-05,2]
[423631358,1780265891000,-689.89312031,8.198e-05,2]
[423631359,1780265891000,-689.89312031,8.198e-05,2]
[423631362,1780265891000,-761.9749692,8.198e-05,2]
[423631361,1780265891000,-761.9749692,8.198e-05,2]
[423631363,1780265891000,-761.9749692,8.198e-05,2]
[423631364,1780265891000,-761.9749692,8.198e-05,2]
[423631366,1780265891000,-761.9749692,8.198e-05,2]
[423631367,1780265891000,-761.9749692,8.198e-05,2]
[423631368,1780265891000,-761.9749692,8.198e-05,2]
[423631370,1780265891000,-25000.0,8.199e-05,2]
[423631369,1780265891000,-6765.44747078,8.199e-05,2]
[423631345,1780265891000,-689.89312031,8.198e-05,2]
[423631357,1780265891000,-689.89312031,8.198e-05,2]
[423631365,1780265891000,-761.9749692,8.198e-05,2]
[423631372,1780265892000,-25000.0,8.199e-05,2]
[423631371,1780265892000,-25000.0,8.199e-05,2]
[423631373,1780265893000,-25000.0,8.199e-05,2]
[423631374,1780265895000,-25000.0,8.199e-05,2]
[423631375,1780265896000,-25000.0,8.199e-05,2]
[423631376,1780265897000,-25000.0,8.199e-05,2]
[423631377,1780265898000,-25000.0,8.199e-05,2]
[423631378,1780266079000,152.0,0.00029806,120]
[423631380,1780266109000,387.78749022,8.098e-05,7]
[423631379,1780266109000,258.52499346,8e-05,7]
[423631382,1780266224000,175.01,5.935e-05,2]
[423631386,1780266554000,-1898.41,6.768e-05,2]
[423631387,1780266554000,-1852.42,6.921e-05,2]
[423631390,1780266554000,-69.127116,7.008e-05,2]
[423631389,1780266554000,-1414.47,7.004e-05,2]
[423631388,1780266554000,-152.0,6.989e-05,2]
[423631391,1780266602000,1249.08,8.082e-05,14]
[423631402,1780266631000,-248.992884,7.008e-05,2]
[423631406,1780266631000,-5366.89,7.104e-05,2]
[423631405,1780266631000,-152.0,7.058e-05,2]
[423631404,1780266631000,-2148.51,7.039e-05,2]
[423631403,1780266631000,-300.0,7.038e-05,2]
[423631401,1780266631000,-3972.51177835,6.75e-05,2]
[423631393,1780266631000,-1165.25975729,6.749e-05,2]
[423631398,1780266631000,-1582.56,6.75e-05,2]
[423631400,1780266631000,-645.55505471,6.75e-05,2]
[423631399,1780266631000,-339.49464965,6.75e-05,2]
[423631396,1780266631000,-1404.15351729,6.75e-05,2]
[423631394,1780266631000,-34.74024271,6.749e-05,2]
[423631395,1780266631000,-250.0,6.749e-05,2]
[423631407,1780266631000,-152.0,7.128e-05,2]
[423631397,1780266631000,-261.415,6.75e-05,2]
[423631408,1780266631000,-9174.47,7.14e-05,2]
[423631411,1780266631000,-166.66,7.214e-05,2]
[423631410,1780266631000,-152.0,7.197e-05,2]
[423631431,1780266631000,-250.0,7.613e-05,2]
[423631409,1780266631000,-3050.05,7.14e-05,2]
[423631427,1780266631000,-152.0,7.543e-05,2]
[423631423,1780266631000,-152.0,7.474e-05,2]
[423631421,1780266631000,-166.66,7.452e-05,2]
[423631425,1780266631000,-960.0,7.502e-05,2]
[423631419,1780266631000,-500.0,7.444e-05,2]
[423631429,1780266631000,-152.0,7.612e-05,2]
[423631414,1780266631000,-6189.19,7.348e-05,2]
[423631417,1780266631000,-1680.0,7.423e-05,2]
[423631416,1780266631000,-152.0,7.404e-05,2]
[423631415,1780266631000,-2488.32,7.382e-05,2]
[423631413,1780266631000,-152.0,7.335e-05,2]
[423631412,1780266631000,-152.0,7.266e-05,2]
[423631418,1780266631000,-250.0,7.424e-05,2]
[423631433,1780266632000,-166.66,7.691e-05,2]
[423631435,1780266632000,-328247.705279,7.9e-05,2]
[423631437,1780266632000,-18437.67346633,7.9e-05,2]
[423631440,1780266632000,-5000.80998485,7.9e-05,2]
[423631464,1780266632000,-500.0,7.899e-05,2]
[423631462,1780266632000,-365.73535562,7.899e-05,2]
[423631468,1780266632000,-2234.94,7.9e-05,2]
[423631466,1780266632000,-631.71407581,7.9e-05,2]
[423631459,1780266632000,-302.55056857,7.899e-05,2]
[423631562,1780266637000,-500.0,7.899e-05,2]
[423631565,1780266637000,-1945.64030655,7.9e-05,2]
[423631566,1780266637000,-1627.30935883,7.9e-05,2]
[423631564,1780266637000,-368.01761643,7.899e-05,2]
[423631563,1780266637000,-500.0,7.899e-05,2]
[423631632,1780266638000,-500.0,8.69e-05,2]
[423631595,1780266638000,-1694.26986594,8.198e-05,2]
[423631593,1780266638000,-1694.26986594,8.198e-05,2]
[423631600,1780266638000,-4328.48051187,8.198e-05,2]
[423631598,1780266638000,-263.91170216,8.198e-05,2]
[423631608,1780266638000,-500.0,8.219e-05,2]
[423631602,1780266638000,-592.88734821,8.198e-05,2]
[423631614,1780266638000,-2000.0,8.219e-05,2]
[423631604,1780266638000,-841.3188791,8.198e-05,2]
[423631606,1780266638000,-154.70839049,8.199e-05,2]
[423631618,1780266638000,-500.0,8.219e-05,2]
[423631612,1780266638000,-500.0,8.219e-05,2]
[423631616,1780266638000,-4493.04,8.219e-05,2]
[423631594,1780266638000,-1694.26986594,8.198e-05,2]
[423631619,1780266638000,-166.66,8.405e-05,2]
[423631621,1780266638000,-960.0,8.44e-05,2]
[423631623,1780266638000,-152.0,8.491e-05,2]
[423631625,1780266638000,-150.0,8.493e-05,2]
[423631627,1780266638000,-223593.96615673,8.512e-05,2]
[423631636,1780266638000,-350.90097659,8.69e-05,2]
[423631640,1780266638000,-587.9,8.889e-05,2]
[423631638,1780266638000,-794.47985399,8.714e-05,2]
[423631642,1780266638000,-175.01,8.903e-05,2]
[423631629,1780266638000,-500.0,8.69e-05,2]
[423631634,1780266638000,-500.0,8.69e-05,2]
[423631610,1780266638000,-486.53733412,8.219e-05,2]
[423631591,1780266638000,-1694.26986594,8.198e-05,2]
[423631592,1780266638000,-1694.26986594,8.198e-05,2]
[423631567,1780266638000,-8460.0,7.9e-05,2]
[423631568,1780266638000,-24293.58140421,7.9e-05,2]
[423631569,1780266638000,-2136.29999999,7.9e-05,2]
[423631571,1780266638000,-150.0,7.9e-05,2]
[423631570,1780266638000,-2106984.32612443,7.9e-05,2]
[423631573,1780266638000,-3406.19,7.923e-05,2]
[423631572,1780266638000,-5760.98,7.923e-05,2]
[423631578,1780266638000,-1000.0,8.097e-05,2]
[423631580,1780266638000,-183.089,8.098e-05,2]
[423631574,1780266638000,-166.66,7.929e-05,2]
[423631582,1780266638000,-166.66,8.167e-05,2]
[423631589,1780266638000,-1694.26986594,8.198e-05,2]
[423631581,1780266638000,-99269.5756,8.098e-05,2]
[423631583,1780266638000,-1000.0,8.198e-05,2]
[423631575,1780266638000,-7709.80117756,8e-05,2]
[423631585,1780266638000,-1694.26986594,8.198e-05,2]
[423631584,1780266638000,-1694.26986594,8.198e-05,2]
[423631577,1780266638000,-3222.58,8.077e-05,2]
[423631576,1780266638000,-150.0,8e-05,2]
[423631587,1780266638000,-1694.26986594,8.198e-05,2]
[423631586,1780266638000,-198.87982678,8.198e-05,2]
[423631588,1780266638000,-1694.26986594,8.198e-05,2]
[423631590,1780266638000,-1694.26986592,8.198e-05,2]
[423631596,1780266638000,-1694.26986594,8.198e-05,2]
[423631579,1780266638000,-2649.659,8.098e-05,2]
[423631644,1780266638000,-2000.0,9.247e-05,2]
[423631646,1780266638000,-960.0,9.378e-05,2]
[423631651,1780266638000,-4236.73,9.462e-05,2]
[423631697,1780266638000,-9999.99,0.00010475,2]
[423631688,1780266638000,-13406.02,0.00010475,2]
[423631689,1780266638000,-24999.99,0.00010475,2]
[423631699,1780266638000,-499.99,0.00010475,2]
[423631698,1780266638000,-299.99,0.00010475,2]
[423631690,1780266638000,-49999.99,0.00010475,2]
[423631695,1780266638000,-999.99,0.00010475,2]
[423631693,1780266638000,-9999.99,0.00010475,2]
[423631691,1780266638000,-2868.32,0.00010475,2]
[423631692,1780266638000,-150.99,0.00010475,2]
[423631694,1780266638000,-5765.21,0.00010475,2]
[423631700,1780266638000,-3200.0,0.00010529,2]
[423631696,1780266638000,-255.93,0.00010475,2]
[423631702,1780266638000,-1351.25533963,0.00010708,2]
[423631703,1780266638000,-3200.0,0.00010779,2]
[423631708,1780266638000,-150.0,0.00010959,2]
[423631712,1780266638000,-15606.00371096,0.00011099,2]
[423631710,1780266638000,-12383.3860062,0.00011099,2]
[423631705,1780266638000,-153.47,0.0001095,2]
[423631706,1780266638000,-150.0,0.00010959,2]
[423631707,1780266638000,-4547.83,0.00010959,2]
[423631709,1780266638000,-3200.0,0.0001103,2]
[423631711,1780266638000,-15606.00371101,0.00011099,2]
[423631648,1780266638000,-422.61319143,9.442e-05,2]
[423631704,1780266638000,-12891.58132131,0.000109,2]
[423631686,1780266638000,-4236.73,0.00010405,2]
[423631701,1780266638000,-2857.9,0.00010635,2]
[423631678,1780266638000,-4236.73,0.00010195,2]
[423631652,1780266638000,-4236.73,9.514e-05,2]
[423631687,1780266638000,-4236.73,0.00010457,2]
[423631671,1780266638000,-4236.73,9.986e-05,2]
[423631672,1780266638000,-167.15,0.00010006,2]
[423631665,1780266638000,-153.47,9.733e-05,2]
[423631669,1780266638000,-4236.73,9.881e-05,2]
[423631663,1780266638000,-4236.73,9.724e-05,2]
[423631668,1780266638000,-4236.73,9.828e-05,2]
[423631657,1780266638000,-4236.73,9.566e-05,2]
[423631659,1780266638000,-4236.73,9.619e-05,2]
[423631667,1780266638000,-4236.73,9.776e-05,2]
[423631670,1780266638000,-4236.73,9.933e-05,2]
[423631655,1780266638000,-845.22638287,9.529e-05,2]
[423631683,1780266638000,-960.0,0.00010315,2]
[423631673,1780266638000,-3200.0,0.00010027,2]
[423631675,1780266638000,-4236.73,0.0001009,2]
[423631685,1780266638000,-4236.73,0.00010353,2]
[423631674,1780266638000,-4236.73,0.00010038,2]
[423631677,1780266638000,-4236.73,0.00010143,2]
[423631681,1780266638000,-3200.0,0.00010278,2]
[423631682,1780266638000,-4236.73,0.000103,2]
[423631679,1780266638000,-4236.73,0.00010248,2]
[423631676,1780266638000,-500.0,0.00010124,2]
[423631680,1780266638000,-2000.0,0.00010274,2]
[423631661,1780266638000,-4236.73,9.671e-05,2]
[423631684,1780266638000,-153.47,0.00010342,2]
[423631754,1780266639000,-500.0,0.00013425,2]
[423631745,1780266639000,-565.0,0.00013425,2]
[423631749,1780266639000,-500.0,0.00013425,2]
[423631759,1780266639000,-649.24403707,0.00013425,2]
[423631766,1780266639000,-565.0,0.00013425,2]
[423631746,1780266639000,-500.0,0.00013425,2]
[423631755,1780266639000,-565.0,0.00013425,2]
[423631752,1780266639000,-500.0,0.00013425,2]
[423631753,1780266639000,-500.0,0.00013425,2]
[423631751,1780266639000,-500.0,0.00013425,2]
[423631743,1780266639000,-500.0,0.00013425,2]
[423631756,1780266639000,-500.0,0.00013425,2]
[423631748,1780266639000,-565.0,0.00013425,2]
[423631757,1780266639000,-500.0,0.00013425,2]
[423631770,1780266639000,-500.0,0.00013425,2]
[423631761,1780266639000,-500.0,0.00013425,2]
[423631765,1780266639000,-633.12700021,0.00013425,2]
[423631764,1780266639000,-565.0,0.00013425,2]
[423631760,1780266639000,-500.0,0.00013425,2]
[423631763,1780266639000,-500.0,0.00013425,2]
[423631762,1780266639000,-565.0,0.00013425,2]
[423631767,1780266639000,-565.0,0.00013425,2]
[423631769,1780266639000,-500.0,0.00013425,2]
[423631780,1780266639000,-500.0,0.00013425,2]
[423631768,1780266639000,-565.0,0.00013425,2]
[423631779,1780266639000,-500.0,0.00013425,2]
[423631773,1780266639000,-500.0,0.00013425,2]
[423631776,1780266639000,-500.0,0.00013425,2]
[423631750,1780266639000,-565.0,0.00013425,2]
[423631758,1780266639000,-565.0,0.00013425,2]
[423631747,1780266639000,-500.0,0.00013425,2]
[423631719,1780266639000,-153.47,0.00012167,2]
[423631734,1780266639000,-500.0,0.00013425,2]
[423631713,1780266639000,-200.0,0.00011116,2]
[423631714,1780266639000,-960.0,0.00011253,2]
[423631715,1780266639000,-2000.0,0.00011301,2]
[423631716,1780266639000,-4493.04,0.00011507,2]
[423631717,1780266639000,-153.47,0.00011558,2]
[423631718,1780266639000,-22687.5828078,0.00011861,2]
[423631722,1780266639000,-2000.0,0.00012329,2]
[423631720,1780266639000,-12891.58132127,0.00012233,2]
[423631774,1780266639000,-500.0,0.00013425,2]
[423631721,1780266639000,-1351.25533963,0.00012315,2]
[423631726,1780266639000,-500.0,0.00013425,2]
[423631727,1780266639000,-500.0,0.00013425,2]
[423631728,1780266639000,-500.0,0.00013425,2]
[423631729,1780266639000,-500.0,0.00013425,2]
[423631723,1780266639000,-153.47,0.00012775,2]
[423631724,1780266639000,-153.47,0.00013383,2]
[423631725,1780266639000,-565.0,0.00013425,2]
[423631731,1780266639000,-500.0,0.00013425,2]
[423631730,1780266639000,-565.0,0.00013425,2]
[423631732,1780266639000,-500.0,0.00013425,2]
[423631739,1780266639000,-500.0,0.00013425,2]
[423631740,1780266639000,-500.0,0.00013425,2]
[423631741,1780266639000,-565.0,0.00013425,2]
[423631733,1780266639000,-565.0,0.00013425,2]
[423631742,1780266639000,-565.0,0.00013425,2]
[423631735,1780266639000,-500.0,0.00013425,2]
[423631738,1780266639000,-602.68629337,0.00013425,2]
[423631737,1780266639000,-565.0,0.00013425,2]
[423631736,1780266639000,-565.0,0.00013425,2]
[423631744,1780266639000,-500.0,0.00013425,2]
[423631777,1780266639000,-565.0,0.00013425,2]
[423631850,1780266639000,-500.0,0.00013698,2]
[423631775,1780266639000,-500.0,0.00013425,2]
[423631821,1780266639000,-500.0,0.00013698,2]
[423631816,1780266639000,-500.0,0.00013698,2]
[423631817,1780266639000,-500.0,0.00013698,2]
[423631824,1780266639000,-500.0,0.00013698,2]
[423631814,1780266639000,-186.64364503,0.00013698,2]
[423631810,1780266639000,-500.0,0.00013698,2]
[423631822,1780266639000,-500.0,0.00013698,2]
[423631811,1780266639000,-500.0,0.00013698,2]
[423631830,1780266639000,-500.0,0.00013698,2]
[423631832,1780266639000,-500.0,0.00013698,2]
[423631835,1780266639000,-500.0,0.00013698,2]
[423631846,1780266639000,-500.0,0.00013698,2]
[423631849,1780266639000,-500.0,0.00013698,2]
[423631852,1780266639000,-500.0,0.00013698,2]
[423631845,1780266639000,-500.0,0.00013698,2]
[423631843,1780266639000,-500.0,0.00013698,2]
[423631848,1780266639000,-500.0,0.00013698,2]
[423631839,1780266639000,-500.0,0.00013698,2]
[423631851,1780266639000,-500.0,0.00013698,2]
[423631847,1780266639000,-500.0,0.00013698,2]
[423631853,1780266639000,-500.0,0.00013698,2]
[423631856,1780266639000,-166.66,0.00013699,2]
[423631854,1780266639000,-500.0,0.00013698,2]
[423631859,1780266639000,-150.0,0.00013699,2]
[423631858,1780266639000,-150.0,0.00013699,2]
[423631855,1780266639000,-500.0,0.00013698,2]
[423631860,1780266639000,-185.30413615,0.00013699,2]
[423631861,1780266639000,-812.44,0.000137,2]
[423631778,1780266639000,-500.0,0.00013425,2]
[423631812,1780266639000,-500.0,0.00013698,2]
[423631827,1780266639000,-207.9347959,0.00013698,2]
[423631857,1780266639000,-200.0,0.00013699,2]
[423631808,1780266639000,-500.0,0.00013698,2]
[423631819,1780266639000,-500.0,0.00013698,2]
[423631772,1780266639000,-565.0,0.00013425,2]
[423631771,1780266639000,-500.0,0.00013425,2]
[423631781,1780266639000,-166.89214839,0.00013425,2]
[423631786,1780266639000,-569.2367486,0.00013425,2]
[423631785,1780266639000,-565.0,0.00013425,2]
[423631789,1780266639000,-500.0,0.00013698,2]
[423631788,1780266639000,-500.0,0.00013698,2]
[423631792,1780266639000,-500.0,0.00013698,2]
[423631787,1780266639000,-8928.6528055,0.00013598,2]
[423631784,1780266639000,-565.0,0.00013425,2]
[423631783,1780266639000,-565.0,0.00013425,2]
[423631793,1780266639000,-161.8469673,0.00013698,2]
[423631790,1780266639000,-500.0,0.00013698,2]
[423631791,1780266639000,-500.0,0.00013698,2]
[423631782,1780266639000,-565.0,0.00013425,2]
[423631806,1780266639000,-500.0,0.00013698,2]
[423631794,1780266639000,-500.0,0.00013698,2]
[423631807,1780266639000,-500.0,0.00013698,2]
[423631802,1780266639000,-500.0,0.00013698,2]
[423631799,1780266639000,-500.0,0.00013698,2]
[423631797,1780266639000,-500.0,0.00013698,2]
[423631795,1780266639000,-500.0,0.00013698,2]
[423631798,1780266639000,-500.0,0.00013698,2]
[423631809,1780266639000,-500.0,0.00013698,2]
[423631805,1780266639000,-500.0,0.00013698,2]
[423631804,1780266639000,-500.0,0.00013698,2]
[423631800,1780266639000,-500.0,0.00013698,2]
[423631803,1780266639000,-500.0,0.00013698,2]
[423631801,1780266639000,-500.0,0.00013698,2]
[423631796,1780266639000,-500.0,0.00013698,2]
[423631899,1780266640000,-282.04317449,0.00017692,2]
[423631896,1780266640000,-150.0,0.00017692,2]
[423631897,1780266640000,-150.0,0.00017692,2]
[423631898,1780266640000,-151.0,0.00017692,2]
[423631890,1780266640000,-168.2,0.00016712,2]
[423631894,1780266640000,-22687.5828078,0.00017001,2]
[423631892,1780266640000,-9999.99,0.00016922,2]
[423631900,1780266640000,-153.0,0.00017692,2]
[423631891,1780266640000,-500.0,0.00016863,2]
[423631895,1780266640000,-2000.0,0.00017016,7]
[423631893,1780266640000,-15606.00371096,0.00016999,2]
[423631904,1780266640000,-1090.00342372,0.0001789,2]
[423631902,1780266640000,-1050.0,0.0001774,2]
[423631903,1780266640000,-450.0,0.0001774,7]
[423631910,1780266640000,-151.0,0.00018222,2]
[423631905,1780266640000,-8076.97962194,0.00018,2]
[423631911,1780266640000,-151.0,0.00018222,2]
[423631912,1780266640000,-151.0,0.00018222,2]
[423631907,1780266640000,-151.0,0.00018222,2]
[423631913,1780266640000,-151.0,0.00018222,2]
[423631906,1780266640000,-198.81886685,0.00018,2]
[423631889,1780266640000,-150.0,0.00016684,3]
[423631909,1780266640000,-151.0,0.00018222,2]
[423631901,1780266640000,-27456.47,0.00017728,2]
[423631888,1780266640000,-12891.58132127,0.00016644,2]
[423631878,1780266640000,-812.44,0.000161,2]
[423631885,1780266640000,-397.77213461,0.00016347,2]
[423631908,1780266640000,-151.0,0.00018222,2]
[423631864,1780266640000,-166.66,0.00013973,2]
[423631862,1780266640000,-1000.0,0.0001373,2]
[423631863,1780266640000,-166.66,0.00013836,2]
[423631865,1780266640000,-153.47,0.00013992,2]
[423631866,1780266640000,-15606.00371096,0.00014033,2]
[423631867,1780266640000,-500.0,0.00014059,2]
[423631868,1780266640000,-166.66,0.0001411,2]
[423631869,1780266640000,-166.66,0.00014247,2]
[423631870,1780266640000,-166.66,0.00014384,2]
[423631877,1780266640000,-302.87295711,0.00016,2]
[423631884,1780266640000,-200.0,0.0001634,2]
[423631876,1780266640000,-2273.37776545,0.00015807,2]
[423631875,1780266640000,-1517.64,0.000153,2]
[423631873,1780266640000,-795.54426922,0.00015,2]
[423631872,1780266640000,-153.47,0.000146,2]
[423631879,1780266640000,-201.10590632,0.000161,7]
[423631874,1780266640000,-450.31,0.00015068,2]
[423631880,1780266640000,-302.87295711,0.000161,2]
[423631881,1780266640000,-302.87295711,0.000162,2]
[423631882,1780266640000,-196.6,0.000162,2]
[423631887,1780266640000,-450.31,0.00016438,2]
[423631883,1780266640000,-500.0,0.00016312,2]
[423631886,1780266640000,-469.6,0.00016438,2]
[423631871,1780266640000,-243.896559,0.00014468,2]
[423631916,1780266640000,-151.0,0.00018222,2]
[423631919,1780266640000,-2080.17592889,0.00018222,2]
[423631914,1780266640000,-151.0,0.00018222,2]
[423631939,1780266640000,-896.0,0.0002,2]
[423631946,1780266640000,-2651.58474907,0.0002,2]
[423631949,1780266640000,-4840.4663565,0.0002,2]
[423631945,1780266640000,-1060.22129421,0.0002,2]
[423631942,1780266640000,-245.72939499,0.0002,2]
[423631951,1780266640000,-507.0,0.0002,2]
[423631961,1780266640000,-2494.55939288,0.00020962,2]
[423631962,1780266640000,-931.0,0.00021,2]
[423631950,1780266640000,-387.0,0.0002,2]
[423631952,1780266640000,-265.0,0.0002,2]
[423631954,1780266640000,-604.0,0.0002,2]
[423631943,1780266640000,-1313.45756698,0.0002,2]
[423631956,1780266640000,-2405.55389863,0.00020414,2]
[423631958,1780266640000,-500.0,0.00020563,2]
[423631955,1780266640000,-469.6,0.00020381,2]
[423631960,1780266640000,-2684.65380489,0.000207,2]
[423631959,1780266640000,-500.0,0.00020563,2]
[423631964,1780266640000,-156.0,0.00021,2]
[423631963,1780266640000,-235.0,0.00021,2]
[423631965,1780266640000,-896.0,0.00021,2]
[423631966,1780266640000,-928.0,0.00021,2]
[423631967,1780266640000,-3415.87687989,0.00021,7]
[423631968,1780266640000,-387.0,0.00021,2]
[423631917,1780266640000,-151.0,0.00018222,2]
[423631957,1780266640000,-500.0,0.00020563,2]
[423631948,1780266640000,-4260.94,0.0002,2]
[423631953,1780266640000,-1097.0,0.0002,2]